bitfinex/quotes_SOLUSD_20250210
["timestamp","ask_amount","ask_price","bid_price","bid_amount"]
[1739153525140,0.0001,196.88,196.86,27.53634415]
[1739153525356,27.53644415,196.88,196.83,14.2254]
[1739153525540,27.53634415,196.86,196.83,14.2254]
[1739153525945,27.53634415,196.85,196.83,14.2254]
[1739153526152,27.53634415,196.87,196.83,14.2254]
[1739153526354,27.53644415,196.88,196.83,14.2254]
[1739153526557,0.0001,196.88,196.83,14.2254]
[1739153526949,27.53644415,196.88,196.83,14.2254]
[1739153527339,27.53634415,196.87,196.83,14.2254]
[1739153527870,27.53634415,196.84,196.83,4.0644]
[1739153528039,27.53634415,196.84,196.81,4.0646]
[1739153528365,27.53634415,196.82,196.76,4.0658]
[1739153528573,27.53634415,196.79,196.76,4.0658]
[1739153529043,27.53634415,196.79,196.75,10.1649]
[1739153529243,27.53634415,196.77,196.75,10.1649]
[1739153529463,27.53634415,196.79,196.75,10.1649]
[1739153530166,27.53634415,196.77,196.73,4.0664]
[1739153530361,27.53634415,196.75,196.73,4.0664]
[1739153530971,1.0,196.77,196.73,4.0664]
[1739153530972,27.53634415,196.77,196.73,4.0664]
[1739153531142,27.53634415,196.79,196.71,4.0669]
[1739153531336,2.6115,196.84,196.73,10.1662]
[1739153531337,27.53634415,196.81,196.73,10.1662]
[1739153532445,28.53634415,196.81,196.73,10.1662]
[1739153532645,27.53634415,196.82,196.75,27.53634415]
[1739153533152,27.53634415,196.82,196.74,27.53634415]
[1739153533359,27.53634415,196.82,196.75,27.53634415]
[1739153533772,27.53634415,196.84,196.76,47.53634415]
[1739153534069,27.53634415,196.85,196.78,27.53634415]
[1739153534261,27.53634415,196.87,196.8,27.53634415]
[1739153534460,27.53634415,196.87,196.79,27.53634415]
[1739153534666,27.53634415,196.85,196.79,27.53634415]
[1739153535049,27.53634415,196.86,196.79,27.53634415]
[1739153535248,27.53634415,196.87,196.8,14.2276]
[1739153535452,0.0001,196.88,196.83,27.53634415]
[1739153535651,0.0001,196.88,196.84,27.53634415]
[1739153536159,0.0001,196.88,196.83,27.53634415]
[1739153536759,0.0001,196.88,196.87,27.66183415]
[1739153537488,0.0001,196.88,196.87,31.59984415]
[1739153537772,27.53644415,196.88,196.87,4.0635]
[1739153537981,0.0001,196.88,196.87,31.59984415]
[1739153538190,0.0001,196.88,196.87,31.72533415]
[1739153538871,0.0001,196.88,196.87,343.72533415]
[1739153539281,0.0001,196.88,196.87,357.26267268]
[1739153539574,0.0001,196.88,196.87,45.26267268]
[1739153539751,0.0001,196.97,196.91,13.66282853]
[1739153539954,0.0001,196.97,196.96,27.53634415]
[1739153540154,0.0001,196.97,196.95,27.53634415]
[1739153540356,0.0001,196.97,196.91,27.53634415]
[1739153540659,0.0001,196.97,196.9,27.53634415]
[1739153540863,0.0001,196.97,196.93,27.53634415]
[1739153541067,0.0001,196.97,196.95,27.53634415]
[1739153541266,0.0001,196.97,196.96,27.53634415]
[1739153541474,0.0001,196.97,196.96,31.59804415]
[1739153541876,0.0001,196.97,196.96,31.84902415]
[1739153542068,0.0001,197.04,196.96,45.26087268]
[1739153542271,0.0001,197.04,197.03,27.66183415]
[1739153542578,0.0001,197.04,197.03,339.78732415]
[1739153542761,27.53634415,197.13,197.06,20.0]
[1739153542962,28.53634415,197.09,197.02,27.53634415]
[1739153543170,27.53634415,197.08,197.0,27.53634415]
[1739153543462,27.53634415,197.08,197.01,14.2124]
[1739153544162,28.53634415,197.06,197.01,14.2124]
[1739153544568,28.53634415,197.04,197.01,4.0607]
[1739153544863,27.53634415,197.06,197.01,4.0607]
[1739153545069,27.53634415,197.06,197.01,14.2124]
[1739153545269,0.95155772,197.16,197.01,14.2124]
[1739153545270,27.53634415,197.08,197.01,14.2124]
[1739153545585,28.53634415,197.1,197.02,27.53634415]
[1739153545877,27.53634415,197.06,197.01,4.0607]
[1739153546068,27.53634415,197.04,197.01,4.0607]
[1739153546263,28.53634415,197.02,197.01,4.0607]
[1739153546861,27.53634415,197.02,197.01,4.0607]
[1739153547063,1.0,197.05,197.01,4.0607]
[1739153547064,27.53634415,197.04,197.01,4.0607]
[1739153547582,27.53634415,197.02,196.97,14.215]
[1739153548158,28.53634415,197.0,196.97,14.215]
[1739153549283,27.53634415,197.0,196.97,14.215]
[1739153549583,28.53634415,197.04,196.97,10.1535]
[1739153549759,1.0,197.03,196.97,10.1535]
[1739153550283,1.0,197.01,196.97,10.1535]
[1739153550466,27.53634415,197.02,196.97,10.1535]
[1739153550467,28.53634415,197.02,196.97,10.1535]
[1739153550671,1.0,197.01,196.97,10.1535]
[1739153550980,28.53634415,197.04,196.97,10.1535]
[1739153551183,27.53634415,197.04,196.97,10.1535]
[1739153551666,1.0,197.05,196.98,27.53634415]
[1739153551873,1.0,197.03,196.97,14.215]
[1739153552087,27.53634415,197.02,196.97,14.215]
[1739153552671,28.53634415,197.02,196.97,14.215]
[1739153552876,1.0,197.02,196.97,14.215]
[1739153553187,27.53634415,197.03,196.97,14.215]
[1739153553795,28.53634415,197.03,196.97,14.215]
[1739153554097,0.063,197.0,196.99,20.0]
[1739153554467,0.063,197.0,196.99,24.0611]
[1739153555390,25.59934415,197.0,196.99,4.0611]
[1739153555598,27.52389143,197.0,196.99,4.0611]
[1739153555800,1.0,196.99,196.89,14.221]
[1739153555984,27.52389143,196.92,196.89,14.221]
[1739153556580,16.94717145,196.92,196.88,20.0]
[1739153556787,16.94717145,196.94,196.89,20.0]
[1739153556971,16.94717145,196.96,196.89,16.94717145]
[1739153557570,8.1484,197.04,196.91,16.94717145]
[1739153557571,16.94717145,196.98,196.91,16.94717145]
[1739153557968,16.94717145,197.0,196.91,16.94717145]
[1739153558387,16.94717145,196.98,196.91,16.94717145]
[1739153558693,16.94717145,196.98,196.92,14.2189]
[1739153560283,16.94717145,197.0,196.92,14.2189]
[1739153560486,16.94717145,197.0,196.92,34.5317]
[1739153560878,16.94717145,197.0,196.93,16.94717145]
[1739153561598,1.0,197.03,196.95,36.94717145]
[1739153561599,16.94717145,197.02,196.95,36.94717145]
[1739153562372,1.0,197.03,196.95,36.94717145]
[1739153562574,1.0,197.03,196.95,20.0]
[1739153562575,16.94717145,196.99,196.95,20.0]
[1739153562776,16.94717145,196.99,196.96,4.0617]
[1739153562975,16.94717145,196.97,196.96,4.0617]
[1739153564178,16.94717145,196.99,196.96,14.216]
[1739153564604,1.0,197.03,196.96,14.216]
[1739153564810,1.0,197.03,196.96,37.25577145]
[1739153565116,16.94717145,197.0,196.96,20.0]
[1739153565606,16.94717145,197.0,196.96,0.03]
[1739153565810,16.94717145,197.02,196.96,0.03]
[1739153566099,1.0,197.03,196.96,36.97717145]
[1739153566306,1.0,197.03,196.97,16.94717145]
[1739153567015,1.0,197.03,196.98,14.2146]
[1739153567173,18.01017145,197.04,196.98,14.2146]
[1739153567580,18.01017145,197.04,197.03,20.0]
[1739153567581,0.0001,197.04,197.03,20.0]
[1739153568293,0.0001,197.04,197.02,16.94717145]
[1739153569189,0.0001,197.04,197.03,4.0602]
[1739153569398,16.94727145,197.04,197.03,4.0602]
[1739153570292,0.0001,197.04,197.03,4.0602]
[1739153571194,0.0001,197.04,197.03,37.07266145]
[1739153572310,0.0001,197.04,197.03,0.12549]
[1739153573103,0.0001,197.04,197.03,0.25098]
[1739153573308,0.0001,197.04,197.03,41.25835145]
[1739153578287,0.0001,197.04,197.03,41.28835145]
[1739153579123,0.0001,197.04,197.03,41.03737145]
[1739153579304,0.0001,197.04,197.03,4.0902]
[1739153579501,0.0001,197.04,197.03,24.21569]
[1739153579709,0.0001,197.04,197.03,4.34118]
[1739153580006,0.0001,197.04,197.03,34.70019998]
[1739153580821,0.0001,197.04,197.03,21.28835145]
[1739153581386,0.0001,197.04,197.03,65.24019998]
[1739153581597,0.0001,197.04,197.03,66.24019998]
[1739153582519,0.0001,197.04,197.03,65.24019998]
[1739153583092,0.0001,197.04,197.03,21.28835145]
[1739153584798,0.0001,197.04,197.03,66.24019998]
[1739153585506,0.0001,197.04,197.03,4.0902]
[1739153585688,16.94727145,197.04,197.03,4.0902]
[1739153586091,16.94727145,197.04,197.03,0.03]
[1739153586907,17.94727145,197.04,197.03,0.03]
[1739153587129,17.94727145,197.04,196.98,14.2146]
[1739153587302,16.94717145,197.01,196.98,14.2146]
[1739153587626,16.94717145,197.03,196.98,14.2146]
[1739153587815,17.94717145,197.01,196.98,14.2146]
[1739153588011,16.94717145,196.99,196.98,14.2146]
[1739153588407,16.94717145,197.01,196.96,0.03]
[1739153589610,16.94717145,196.99,196.96,0.03]
[1739153589832,17.94717145,196.97,196.96,0.03]
[1739153591130,1.0,196.94,196.88,14.2217]
[1739153591423,16.94717145,196.92,196.88,14.2217]
[1739153592121,17.94717145,196.94,196.88,14.2217]
[1739153592518,17.94717145,196.94,196.88,10.1584]
[1739153593229,16.94717145,196.94,196.88,10.1584]
[1739153593631,17.94717145,196.96,196.89,16.94717145]
[1739153593819,1.0,196.97,196.93,16.94717145]
[1739153594243,1.0,196.97,196.91,36.94717145]
[1739153594833,1.0,196.97,196.92,14.2189]
[1739153595037,16.94717145,197.0,196.92,14.2189]
[1739153595343,1.0,197.02,196.95,16.94717145]
[1739153595532,1.0,197.01,196.95,16.94717145]
[1739153595726,1.0,197.0,196.95,16.94717145]
[1739153596040,16.94717145,196.99,196.92,34.5317]
[1739153596220,16.94717145,196.94,196.92,14.2189]
[1739153596534,16.94717145,197.0,196.92,34.5317]
[1739153596737,1.0,197.01,196.93,16.94717145]
[1739153597231,1.0,197.01,196.94,44.7574]
[1739153597414,1.0,197.01,196.94,14.2174]
[1739153597733,1.0,197.01,196.94,34.5281]
[1739153597942,1.0,196.97,196.94,14.2174]
[1739153598324,1.0,196.95,196.94,14.2174]
[1739153598638,1.0,196.95,196.94,4.0621]
[1739153598814,1.0,196.92,196.91,4.0627]
[1739153599013,17.94717145,196.92,196.91,4.0627]
[1739153599215,17.94717145,196.92,196.86,20.0]
[1739153599446,1.0,196.91,196.84,34.5457]
[1739153599744,16.94717145,196.92,196.85,16.94717145]
[1739153599745,1.0,196.92,196.85,16.94717145]
[1739153600321,1.0,196.88,196.84,14.2247]
[1739153600544,1.0,196.87,196.84,14.2247]
[1739153601126,1.0,196.88,196.84,14.2247]
[1739153601327,1.0,196.88,196.84,10.1605]
[1739153601637,1.0,196.89,196.84,10.1605]
[1739153602323,1.0,196.88,196.84,10.1605]
[1739153602537,1.0,196.85,196.84,10.1605]
[1739153603039,1.0,196.84,196.83,0.03]
[1739153603445,1.0,196.87,196.83,16.97717145]
[1739153603744,16.94717145,196.9,196.83,0.03]
[1739153603745,1.0,196.88,196.83,0.03]
[1739153603946,17.94717145,196.88,196.83,0.03]
[1739153604117,1.0,196.88,196.83,0.03]
[1739153604310,1.0,196.88,196.83,16.97717145]
[1739153604509,1.0,196.89,196.85,16.94717145]
[1739153605521,1.0,196.89,196.86,4.0638]
[1739153607343,1.0,196.88,196.86,4.0638]
[1739153607652,1.0,196.88,196.85,10.1598]
[1739153607811,1.0,196.89,196.85,10.1598]
[1739153608016,1.0,196.88,196.85,10.1598]
[1739153608332,16.94717145,196.92,196.85,10.1598]
[1739153608333,1.0,196.89,196.85,10.1598]
[1739153608513,1.0,196.89,196.85,27.10697145]
[1739153609139,1.0,196.89,196.85,10.1598]
[1739153609341,1.0,196.85,196.84,4.0642]
[1739153609526,1.0,196.85,196.83,0.03]
[1739153609527,17.94717145,196.85,196.83,0.03]
[1739153609720,1.0,196.84,196.83,0.03]
[1739153610456,2.5595,196.84,196.83,0.03]
[1739153613444,1.0,196.84,196.83,0.03]
[1739153613952,1.5595,196.9,196.83,16.97717145]
[1739153614137,16.94717145,196.93,196.85,16.94717145]
[1739153614328,1.5595,196.97,196.83,0.03]
[1739153614329,18.50667145,196.97,196.89,16.94717145]
[1739153614739,1.5595,196.97,196.91,16.94717145]
[1739153614939,17.01017145,197.01,196.93,16.94717145]
[1739153615243,17.01017145,197.01,196.95,16.94717145]
[1739153615440,0.063,197.01,196.95,16.94717145]
[1739153616032,0.063,197.01,196.96,14.216]
[1739153617156,0.063,197.01,196.98,16.94717145]
[1739153617157,0.0001,197.01,196.98,16.94717145]
[1739153617525,0.0001,197.01,197.0,37.07266145]
[1739153617726,0.0001,197.01,197.0,37.19815145]
[1739153618039,0.0001,197.01,197.0,41.25905145]
[1739153618426,0.0001,197.01,197.0,41.13356145]
[1739153621554,0.0001,197.01,197.0,41.25905145]
[1739153621729,0.0001,197.01,197.0,54.67089998]
[1739153621931,0.0001,197.01,197.0,55.67089998]
[1739153622346,0.0001,197.01,197.0,54.67089998]
[1739153622540,0.0001,197.01,197.0,55.67089998]
[1739153622738,0.0001,197.04,197.03,21.25098]
[1739153622949,16.94717145,197.19,197.04,0.25098]
[1739153623152,16.94717145,197.17,197.1,16.94717145]
[1739153623449,16.94717145,197.16,197.08,16.94717145]
[1739153623652,16.94717145,197.16,197.09,14.2066]
[1739153624239,16.94717145,197.16,197.09,31.15377145]
[1739153624859,16.94717145,197.16,197.09,14.2066]
[1739153625157,16.94717145,197.17,197.1,16.94717145]
[1739153625855,16.94717145,197.17,197.11,14.2052]
[1739153626157,16.94717145,197.16,197.11,14.2052]
[1739153626955,16.94717145,197.12,197.11,4.0586]
[1739153627827,0.063,197.16,197.1,10.1466]
[1739153627828,17.01017145,197.16,197.1,10.1466]
[1739153628233,0.063,197.16,197.11,16.94717145]
[1739153628446,0.063,197.16,197.1,27.09377145]
[1739153628932,0.063,197.16,197.12,16.94717145]
[1739153629242,0.0001,197.16,197.13,16.94717145]
[1739153629846,0.0001,197.16,197.14,4.058]
[1739153630149,0.0001,197.16,197.15,16.94717145]
[1739153630540,0.0001,197.16,197.15,17.19815145]
[1739153630856,0.0001,197.21,197.2,16.94717145]
[1739153631853,0.0001,197.21,197.19,16.94717145]
[1739153632071,0.0001,197.21,197.19,4.057]
[1739153632246,16.94717145,197.2,197.19,4.057]
[1739153633154,23.51847145,197.2,197.05,16.94717145]
[1739153633352,23.51847145,197.2,197.04,16.94717145]
[1739153633353,16.94717145,197.12,197.04,16.94717145]
[1739153634060,16.94717145,197.12,197.05,14.2095]
[1739153635547,16.94717145,197.18,197.1,16.94717145]
[1739153635732,23.51847145,197.2,197.12,16.94717145]
[1739153635933,6.5713,197.2,197.14,16.94717145]
[1739153636144,0.0001,197.21,197.15,14.2023]
[1739153636864,0.0001,197.21,197.2,16.94717145]
[1739153637651,0.0001,197.21,197.19,16.94717145]
[1739153638052,0.0001,197.21,197.2,21.00387145]
[1739153638657,1.663,197.33,197.23,20.0]
[1739153638861,1.663,197.33,197.29,16.94717145]
[1739153639169,1.663,197.33,197.27,16.94717145]
[1739153639466,18.61017145,197.33,197.26,16.94717145]
[1739153639669,16.94717145,197.31,197.24,16.94717145]
[1739153639847,16.94717145,197.28,197.2,51.42967145]
[1739153640037,16.94717145,197.28,197.2,31.14577145]
[1739153640243,2.61331758,197.33,197.2,14.1986]
[1739153640244,16.94717145,197.25,197.2,14.1986]
[1739153640555,16.94717145,197.25,197.2,4.0567]
[1739153640762,16.94717145,197.23,197.2,4.0567]
[1739153641070,16.94717145,197.21,197.14,4.058]
[1739153641273,16.94717145,197.19,197.14,4.058]
[1739153641837,16.94717145,197.19,197.11,16.94717145]
[1739153642043,0.95088621,197.25,197.12,4.0584]
[1739153642044,16.94717145,197.17,197.12,4.0584]
[1739153642353,16.94717145,197.13,197.09,4.0588]
[1739153642872,16.94717145,197.15,197.09,4.0588]
[1739153643173,16.94717145,197.13,197.09,4.0588]
[1739153643748,16.94717145,197.17,197.09,21.00597145]
[1739153643946,16.94717145,197.17,197.09,31.15357145]
[1739153644166,16.94717145,197.19,197.11,16.94717145]
[1739153645869,8.2343,197.23,197.15,16.94717145]
[1739153646171,8.2343,197.23,197.17,16.94717145]
[1739153646172,1.663,197.23,197.17,16.94717145]
[1739153647356,16.94717145,197.22,197.18,4.0572]
[1739153647670,16.94717145,197.2,197.18,4.0572]
[1739153648177,1.663,197.23,197.18,4.0572]
[1739153648178,16.94717145,197.22,197.18,4.0572]
[1739153648347,1.663,197.23,197.18,4.0572]
[1739153648748,16.94717145,197.22,197.18,4.0572]
[1739153649555,16.94717145,197.2,197.16,4.0576]
[1739153649875,16.94717145,197.22,197.16,14.2016]
[1739153650197,1.0,197.14,197.06,4.0595]
[1739153650473,16.94717145,197.07,197.04,4.0899]
[1739153651452,16.94717145,197.07,197.04,0.03]
[1739153652067,16.94717145,197.05,197.04,0.03]
[1739153652857,17.89897587,197.05,197.04,0.03]
[1739153653151,17.89897587,197.05,196.97,4.0613]
[1739153653358,16.94717145,197.0,196.93,10.1558]
[1739153653555,16.94717145,197.0,196.92,4.0625]
[1739153653771,16.94717145,196.96,196.92,4.0625]
[1739153654271,16.94717145,196.94,196.9,4.0628]
[1739153654859,16.94717145,196.92,196.89,4.093]
[1739153655473,16.94717145,196.92,196.84,0.03]
[1739153655474,1.0,196.87,196.84,0.03]
[1739153655776,16.96792649,196.85,196.84,0.03]
[1739153656367,19.92075633,196.85,196.84,0.03]
[1739153656670,1.0,196.83,196.74,4.0662]
[1739153656868,16.96792649,196.78,196.73,0.03]
[1739153657579,16.96792649,196.76,196.73,0.03]
[1739153658557,16.96792649,196.78,196.73,0.03]
[1739153658760,16.96792649,196.75,196.73,0.03]
[1739153658956,1.6457,196.76,196.73,0.03]
[1739153659183,16.96792649,196.79,196.73,0.03]
[1739153659484,0.95303877,196.83,196.73,0.03]
[1739153659485,27.58072528,196.78,196.73,0.03]
[1739153660283,1.6457,196.84,196.73,0.03]
[1739153660284,27.58072528,196.82,196.73,0.03]
[1739153660493,27.58072528,196.82,196.74,27.58072528]
[1739153660659,27.58072528,196.82,196.73,0.03]
[1739153660660,27.58072528,196.8,196.73,0.03]
[1739153660870,27.58072528,196.78,196.73,0.03]
[1739153661697,27.58072528,196.74,196.73,0.03]
[1739153665857,29.58072528,196.74,196.73,0.03]
[1739153666078,29.53417212,196.74,196.73,0.03]
[1739153666387,1.0,196.73,196.72,0.03]
[1739153667277,28.53417212,196.74,196.72,0.03]
[1739153667584,27.58072528,196.74,196.72,0.03]
[1739153669895,0.95330885,196.73,196.72,0.03]
[1739153670206,1.95330885,196.73,196.72,0.03]
[1739153670380,2.95330885,196.73,196.72,0.03]
[1739153670781,1.95330885,196.73,196.72,0.03]
[1739153671078,1.95330885,196.73,196.69,0.03]
[1739153671281,27.58072528,196.7,196.69,0.03]
[1739153671674,27.58072528,196.72,196.69,0.03]
[1739153672087,27.58072528,196.74,196.69,0.03]
[1739153672879,27.58072528,196.76,196.69,0.03]
[1739153673275,27.58072528,196.76,196.69,0.15549]
[1739153673486,27.58072528,196.78,196.7,27.58072528]
[1739153673767,27.58072528,196.78,196.71,14.2341]
[1739153673980,1.95287431,196.86,196.72,27.70621528]
[1739153673981,27.58072528,196.8,196.72,27.70621528]
[1739153674668,27.58072528,196.82,196.75,0.12549]
[1739153674871,27.58072528,196.83,196.75,27.70621528]
[1739153675173,0.95274272,196.9,196.71,62.14932528]
[1739153675174,27.58072528,196.8,196.71,62.14932528]
[1739153675385,27.58072528,196.76,196.71,14.2341]
[1739153675586,27.58072528,196.74,196.71,14.2341]
[1739153675897,28.53370519,196.84,196.71,10.1672]
[1739153675898,27.58072528,196.78,196.71,10.1672]
[1739153676093,27.58072528,196.78,196.71,37.74792528]
[1739153676598,27.58072528,196.8,196.73,27.58072528]
[1739153676801,1.0,196.89,196.71,10.1672]
[1739153676802,27.58072528,196.84,196.76,0.12549]
[1739153677095,27.58072528,196.86,196.77,27.58072528]
[1739153677617,0.063,196.83,196.78,0.25098]
[1739153677785,0.063,196.83,196.8,4.065]
[1739153678208,0.063,196.83,196.81,27.58072528]
[1739153678381,27.58072528,196.9,196.82,0.12549]
[1739153678694,6.6655,196.97,196.82,0.12549]
[1739153678695,27.58072528,196.92,196.83,27.58072528]
[1739153679070,27.58072528,196.92,196.84,0.25098]
[1739153679307,27.58072528,196.92,196.86,0.25098]
[1739153679596,27.58072528,196.87,196.73,4.0664]
[1739153679800,27.58072528,196.78,196.69,4.0973]
[1739153679997,27.58072528,196.76,196.69,14.2655]
[1739153680232,27.58072528,196.78,196.7,27.58072528]
[1739153680704,27.58072528,196.78,196.71,0.12549]
[1739153681500,27.58072528,196.74,196.69,10.1982]
[1739153681703,1.95288111,196.73,196.69,0.03]
[1739153681903,56.16145056,196.7,196.69,0.03]
[1739153682108,57.11498022,196.7,196.69,0.03]
[1739153682782,27.58072528,196.6,196.54,4.0704]
[1739153684586,27.58072528,196.58,196.54,4.0704]
[1739153685506,27.58072528,196.58,196.53,0.03]
[1739153686915,27.58072528,196.58,196.53,0.15549]
[1739153687614,27.58072528,196.58,196.54,14.2464]
[1739153688312,27.58072528,196.58,196.54,4.0704]
[1739153688993,27.58072528,196.56,196.54,4.0704]
[1739153689310,27.58072528,196.58,196.54,4.0704]
[1739153689505,27.58072528,196.58,196.54,0.03]
[1739153692202,27.58072528,196.56,196.54,0.03]
[1739153692607,27.58072528,196.58,196.54,0.03]
[1739153693421,27.58072528,196.57,196.54,0.03]
[1739153694523,27.58072528,196.56,196.54,0.03]
[1739153694708,27.58072528,196.55,196.54,0.03]
[1739153695239,27.58072528,196.56,196.54,0.03]
[1739153695403,27.58072528,196.55,196.54,0.03]
[1739153696903,31.65092528,196.55,196.54,0.03]
[1739153697213,27.58072528,196.55,196.54,0.03]
[1739153700418,27.58072528,196.56,196.54,0.03]
[1739153700621,27.58072528,196.57,196.54,0.03]
[1739153700822,27.58072528,196.56,196.54,0.03]
[1739153701126,0.95380562,196.63,196.54,0.03]
[1739153701127,27.58072528,196.55,196.54,0.03]
[1739153701928,27.58072528,196.59,196.54,0.03]
[1739153702101,27.58072528,196.6,196.54,0.03]
[1739153702431,27.58072528,196.56,196.54,0.03]
[1739153702797,27.58072528,196.55,196.54,0.03]
[1739153703711,27.6522384,196.55,196.54,0.03]
[1739153704394,17.01454917,196.55,196.54,0.03]
[1739153704622,17.01454917,196.56,196.54,0.03]
[1739153704827,17.01454917,196.57,196.54,0.03]
[1739153704997,17.01454917,196.59,196.54,0.03]
[1739153705534,17.01454917,196.61,196.54,17.29552917]
[1739153705742,6.1929,196.69,196.56,0.25098]
[1739153705743,17.01454917,196.62,196.56,0.25098]
[1739153706327,0.063,196.69,196.56,0.25098]
[1739153706328,17.01454917,196.64,196.56,17.26552917]
[1739153706537,17.01454917,196.66,196.58,17.26552917]
[1739153707036,17.01454917,196.65,196.6,0.12549]
[1739153707210,17.01454917,196.64,196.6,0.12549]
[1739153707636,16.99459876,196.64,196.6,0.12549]
[1739153707801,16.99459876,196.61,196.55,4.0702]
[1739153708006,16.99459876,196.56,196.55,4.0702]
[1739153708602,27.63647683,196.57,196.55,4.0702]
[1739153708806,27.63647683,196.59,196.55,4.0702]
[1739153709008,27.63647683,196.59,196.55,10.1755]
[1739153709213,27.63647683,196.62,196.56,0.12549]
[1739153709414,27.63647683,196.63,196.56,41.29930536]
[1739153709612,0.063,196.69,196.56,41.29930536]
[1739153709613,27.63647683,196.64,196.58,0.12549]
[1739153710423,27.63647683,196.64,196.57,0.25098]
[1739153710617,27.63647683,196.67,196.6,0.25098]
[1739153711044,27.63647683,196.67,196.62,0.12549]
[1739153711736,27.63647683,196.63,196.61,14.2413]
[1739153712430,27.63647683,196.65,196.62,0.12549]
[1739153713026,27.63647683,196.65,196.63,4.0685]
[1739153713531,27.63647683,196.64,196.63,4.0685]
[1739153714145,27.63647683,196.64,196.58,4.0695]
[1739153714435,27.63647683,196.59,196.58,14.2434]
[1739153714639,27.63647683,196.6,196.58,14.2434]
[1739153714809,27.63647683,196.63,196.58,14.2434]
[1739153715010,27.63647683,196.63,196.58,10.1739]
[1739153715529,27.63647683,196.62,196.58,10.1739]
[1739153715916,27.63647683,196.6,196.58,10.1739]
[1739153716114,27.63647683,196.63,196.59,0.12549]
[1739153716332,27.63647683,196.65,196.59,0.25098]
[1739153716729,27.63647683,196.64,196.59,0.25098]
[1739153717125,27.63647683,196.63,196.57,13.66282853]
[1739153717326,27.63647683,196.63,196.6,10.1729]
[1739153717754,27.63647683,196.61,196.6,10.1729]
[1739153717926,27.63647683,196.61,196.58,4.0695]
[1739153718127,27.63647683,196.59,196.58,4.0695]
[1739153718434,56.92635366,196.59,196.54,0.03]
[1739153718633,27.63647683,196.55,196.54,0.03]
[1739153724657,1.5946,196.66,196.54,0.03]
[1739153724658,27.63647683,196.56,196.54,0.03]
[1739153724863,27.63647683,196.57,196.54,0.03]
[1739153725340,27.63647683,196.55,196.54,0.03]
[1739153729761,27.6439536,196.55,196.54,0.03]
[1739153730559,17.01157814,196.55,196.54,0.03]
[1739153732849,17.96582848,196.56,196.54,0.03]
[1739153733061,17.01157814,196.56,196.54,0.03]
[1739153735663,0.95407333,196.55,196.54,0.03]
[1739153735865,17.01157814,196.56,196.54,0.03]
[1739153739267,0.9541849,196.55,196.54,0.03]
[1739153739472,17.96577553,196.56,196.54,0.03]
[1739153740563,17.01157814,196.56,196.54,0.03]
[1739153740753,34.02315628,196.56,196.54,0.03]
[1739153740954,0.9541858,196.55,196.54,0.03]
[1739153742666,17.01157814,196.55,196.54,0.03]
[1739153743867,17.96577887,196.56,196.54,0.03]
[1739153744764,17.01157814,196.55,196.54,0.03]
[1739153745173,17.01157814,196.58,196.54,0.03]
[1739153745761,1.0,196.41,196.39,0.22978733]
[1739153746074,17.01157814,196.42,196.34,4.1043]
[1739153746376,17.01157814,196.36,196.34,4.1043]
[1739153746741,17.01157814,196.36,196.34,15.66623273]
[1739153747161,17.01157814,196.36,196.34,19.74073273]
[1739153747778,17.01157814,196.38,196.34,19.74073273]
[1739153748345,17.01157814,196.4,196.34,19.74073273]
[1739153748651,17.01157814,196.4,196.34,29.92713273]
[1739153749372,17.01157814,196.44,196.36,6.5779]
[1739153749575,17.01157814,196.46,196.38,0.25098]
[1739153749775,17.01157814,196.46,196.39,17.01157814]
[1739153750474,8.0879,196.53,196.4,0.25098]
[1739153750475,17.01157814,196.48,196.4,0.25098]
[1739153750649,1.5799,196.48,196.43,17.01157814]
[1739153750854,1.5799,196.48,196.34,0.03]
[1739153750855,1.0,196.38,196.34,0.03]
[1739153751053,17.01157814,196.35,196.24,4.0766]
[1739153751269,1.0,196.22,196.15,4.0785]
[1739153751449,1.0,196.28,196.15,4.0785]